{"text_format":"1","workbook":"xlsx","n_sheets":1,"sheets":["BOLIVIANOS"],"not_rendered":{"charts":0,"images":0,"macros":1,"external_links":0,"defined_names":0,"comments":0,"pivot_tables":0},"unopened":[],"bounds":{"document_bytes":16777216,"sheet_cells":100000,"rows_first":2000,"rows_last":500,"rows_between":2000,"halvings":0,"cell_chars":16384,"cell_head_chars":4096},"cells_cut":0,"cells_raw":0,"read":"whole","date_system":"1900"}

{"sheet":"BOLIVIANOS","index":0,"n_rows":31,"n_cols":10,"rows_kept":31,"cut":false,"hidden":false,"merged":[[2,1,2,2],[0,1,0,2],[1,1,1,2]]}
["MONEDA",null,null,"SALDO ACTUAL CONTABLE",{"$f":"BS[[#Totals],[SALDO CONTABLE]]","v":1}]
["BANCO",null,null,"SALDO ACTUAL EFECTIVO",{"$f":"BS[[#Totals],[SALDO EFECTIVO]]","v":0}]
["CUENTA"]
["SALDO INICIAL",0]
["DD-MM-AAA",null,null,null,null,null,null,"DD-MM-AAA"]
["FECHA DE TRANSACCION","CHEQUE Nº","CODIGO","DESCRIPCION","RETIRO","DEPOSITO","SALDO CONTABLE","FECHA DE COBRO","SALDO EFECTIVO"]
["2014-01-01",null,null,"Saldo Inicial",0,0,{"$f":"+B4","v":0},null,{"$f":"G7","v":0}]
[null,null,null,null,null,null,{"$f":"+G7+F8-E8","v":0},null,{"$f":"IF(H8=\"\",I7+F8,I7-E8+F8)","v":0}]
[null,null,null,null,null,null,{"$f":"+G8+F9-E9","v":0},null,{"$f":"IF(H9=\"\",I8+F9,I8-E9+F9)","v":0}]
[null,null,null,null,null,null,0,null,{"$f":"IF(H10=\"\",I9+F10,I9-E10+F10)","v":0}]
[null,null,null,null,null,null,0,null,0]
[null,null,null,null,null,null,0,null,0]
[null,null,null,null,null,null,0,null,0]
[null,null,null,null,null,null,0,null,0]
[null,null,null,null,null,null,0,null,0]
[null,null,null,null,null,null,0,null,0]
[null,null,null,null,null,null,0,null,0]
[null,null,null,null,null,null,0,null,0]
[null,null,null,null,null,null,0,null,0]
[null,null,null,null,null,null,0,null,0]
[null,null,null,null,null,null,{"$f":"+G20+F21-E21","v":0},null,{"$f":"IF(H21=\"\",I20+F21,I20-E21+F21)","v":0}]
[null,null,null,null,null,1,1,null,1]
[null,null,null,null,null,1,2,null,2]
[null,null,null,null,1,null,1,null,2]
[null,null,null,null,null,null,1,null,2]
[null,null,null,null,null,null,1,null,2]
[null,null,null,null,null,null,1,null,2]
[null,null,null,null,null,null,1,null,2]
[null,null,null,null,null,null,1,null,2]
[null,null,null,null,null,null,1,null,2]
[{"$f":"CONCATENATE(\"Nº DE TRANSACCIONES: \",SUBTOTAL(103,BS[FECHA DE TRANSACCION]))","v":"Nº DE TRANSACCIONES: 1"},null,null,"TOTALES",{"$f":"SUBTOTAL(109,BS[RETIRO])","v":1},{"$f":"SUBTOTAL(109,BS[DEPOSITO])","v":2},{"$f":"+BS[[#Totals],[DEPOSITO]]-BS[[#Totals],[RETIRO]]","v":1},null,null,"QUE LA FORMULA SE MANTENGA PARA QUE SIGA REFLEJANDO EL SALDO"]